Workbook

Sheet VBA 1
C3: 2006 | D3: 2007 | M3: koszt PR
B4: brand 1 | C4: 2849.309629 | D4: 2877.428662 | L4: 2004 | M4: 453341
B5: brand 2 | C5: 1905.468758 | D5: 1987.46852 | L5: 2005 | M5: =M4*1.17 -> 530408.97
B6: brand 3 | C6: 3407.999028 | D6: 3424.97672 | L6: 2006 | M6: =M5*1.17 -> 620578.4949
B7: brand 4 | C7: 590.5354933 | D7: 676.576212 | L7: 2007 | M7: =M6*1.17 -> 726076.839
B8: brand 5 | C8: 270.3015788 | D8: 354.6148237 | L8: 2008 | M8: =M7*1.17 -> 849509.9017
B9: brand 6 | C9: 1615.104963 | D9: 1630.822037
B10: brand 7 | C10: 785.1536626 | D10: 805.6983551
B11: brand 8 | C11: 905.5845471 | D11: 1001.300937
B12: brand 9 | C12: 518.0123196 | D12: 579.0440694
B13: brand 10 | C13: 139.4773719 | D13: 141.3370398
B14: Total | C14: =SUM(C4:C13) -> 12986.94735 | D14: =SUM(D4:D13) -> 13479.26738

Sheet VBA 1a
B1: Tabela 1
C2: PL | D2: RU | E2: UA | F2: HU
B3: styczeń
B4: luty
B5: marzec
B6: kwiecień
B7: maj
B8: czerwiec
B9: lipiec
B10: sierpień
B11: wrzesień
B12: październik
B13: listopad
B14: grudzień
B15: TOTAL | C15: =SUM(C3:C14) -> 0 | D15: =SUM(D3:D14) -> 0 | E15: =SUM(E3:E14) -> 0 | F15: =SUM(F3:F14) -> 0
B17: Tabela 2
C18: styczeń | D18: luty | E18: marzec | F18: kwiecień | G18: maj | H18: czerwiec | I18: lipiec | J18: sierpień | K18: wrzesień | L18: październik | M18: listopad | N18: grudzień
B19: PL | C19: 4369.890995 | D19: 4291.957479 | E19: 3427.675387 | F19: 5313.247794 | G19: 3519.851417 | H19: 574.0357326 | I19: 9718.199388 | J19: 4549.458134 | K19: 2341.606013 | L19: 9025.925597 | M19: 5728.558174 | N19: 2283.093027
B21: Tabela 3
C22: styczeń | D22: luty | E22: marzec | F22: kwiecień | G22: maj | H22: czerwiec | I22: lipiec | J22: sierpień | K22: wrzesień | L22: październik | M22: listopad | N22: grudzień
B23: RU | C23: 6011.265737 | D23: 3768.852255 | E23: 22.56955323 | F23: 6384.065706 | G23: 7359.155971 | H23: 5045.845218 | I23: 2694.52526 | J23: 3258.383185 | K23: 2384.802476 | L23: 2836.80598 | M23: 7877.071941 | N23: 1924.016271
B25: Tabela 4
C26: styczeń | D26: luty | E26: marzec | F26: kwiecień | G26: maj | H26: czerwiec | I26: lipiec | J26: sierpień | K26: wrzesień | L26: październik | M26: listopad | N26: grudzień
B27: UA | C27: 6449.847281 | D27: 4984.659055 | E27: 3060.062253 | F27: 6210.258303 | G27: 6333.78444 | H27: 1480.930711 | I27: 5905.647863 | J27: 9501.455287 | K27: 7755.563403 | L27: 6247.392556 | M27: 2153.969466 | N27: 548.8280928
B29: Tabela 5
C30: styczeń | D30: luty | E30: marzec | F30: kwiecień | G30: maj | H30: czerwiec | I30: lipiec | J30: sierpień | K30: wrzesień | L30: październik | M30: listopad | N30: grudzień
B31: HU | C31: 5695.548088 | D31: 8990.284317 | E31: 8562.964771 | F31: 4283.316332 | G31: 7440.400168 | H31: 9302.039215 | I31: 3448.446061 | J31: 9887.112837 | K31: 3571.711011 | L31: 1225.074681 | M31: 981.4796665 | N31: 7204.853702

Sheet VBA 4
B2: Koszty usług
C3: 2008 | H3: 2009 | M3: 2010 | R3: zmiana kosztów
C4: 1Q | D4: 2Q | E4: 3Q | F4: 4Q | G4: FY | H4: 1Q | I4: 2Q | J4: 3Q | K4: 4Q | L4: FY | M4: 1Q | N4: 2Q | O4: 3Q | P4: 4Q | Q4: FY | R4: '09 v '08 | S4: '10 v '09
B5: Usługa 1 | C5: 8001.643959 | D5: 9030.26719 | E5: 2033.626799 | F5: 13995.82558 | G5: =SUM(C5:F5) -> 33061.36353 | H5: 17808.62643 | I5: 5561.845124 | J5: 6616.546409 | K5: 1165.233866 | L5: =SUM(H5:K5) -> 31152.25183 | M5: 16642.95704 | N5: 8089.549747 | O5: 16120.06687 | P5: 12922.20105 | Q5: =SUM(M5:P5) -> 53774.77471 | R5: =L5/G5-1 -> -0.05774449371 | S5: =Q5/L5-1 -> 0.7261922191
B6: Usługa 2 | C6: 10181.37033 | D6: 18615.6598 | E6: 2265.84121 | F6: 7645.84408 | G6: =SUM(C6:F6) -> 38708.71542 | H6: 5603.092752 | I6: 9212.534193 | J6: 2064.434211 | K6: 13405.4376 | L6: =SUM(H6:K6) -> 30285.49876 | M6: 2808.539573 | N6: 10062.42245 | O6: 2404.997401 | P6: 7589.201031 | Q6: =SUM(M6:P6) -> 22865.16046 | R6: =L6/G6-1 -> -0.2176051717 | S6: =Q6/L6-1 -> -0.2450129139
B7: Usługa 3 | C7: 15408.01021 | D7: 19065.20584 | E7: 2665.174392 | F7: 12536.67428 | G7: 49675.06473 | H7: 19780.69485 | I7: 13302.36956 | J7: 8980.483235 | K7: 12654.22536 | L7: 54717.77301 | M7: 18347.27729 | N7: 18640.77843 | O7: 7804.175392 | P7: 2009.949754 | Q7: 46802.18086 | R7: 0.1015138743 | S7: -0.1446621767
B8: Usługa 4 | C8: 17233.00101 | D8: 12314.12266 | E8: 6040.311091 | F8: 2784.18017 | G8: 38371.61493 | H8: 14125.95064 | I8: 14753.63827 | J8: 14357.59111 | K8: 19535.05986 | L8: 62772.23988 | M8: 18487.20924 | N8: 5186.704861 | O8: 15360.21263 | P8: 4187.947065 | Q8: 43222.07379 | R8: 0.6359029973 | S8: -0.3114460488
B9: Usługa 5 | C9: 14372.71929 | D9: 12938.90164 | E9: 10150.74797 | F9: 9376.839238 | G9: 46839.20814 | H9: 16588.46705 | I9: 3322.535793 | J9: 6070.184988 | K9: 17811.06064 | L9: 43792.24847 | M9: 6258.291581 | N9: 5981.455446 | O9: 2393.350869 | P9: 3458.983186 | Q9: 18092.08108 | R9: -0.06505147685 | S9: -0.5868656734
B10: GRUPA A | C10: =SUM(C5:C9) -> 65196.7448 | D10: =SUM(D5:D9) -> 71964.15713 | E10: 23155.70146 | F10: 46339.36335 | G10: 206655.9667 | H10: 73906.83172 | I10: 46152.92294 | J10: 38089.23996 | K10: 64571.01732 | L10: 222720.0119 | M10: 62544.27472 | N10: 47960.91093 | O10: 44082.80316 | P10: 30168.28209 | Q10: 184756.2709 | R10: 0.0777332755 | S10: -0.1704550063
B11: Usługa 6 | C11: 2876.893825 | D11: 10370.20866 | E11: 16053.9741 | F11: 10696.8843 | G11: 39997.96089 | H11: 4934.604111 | I11: 1811.753097 | J11: 2166.892211 | K11: 4231.164214 | L11: 13144.41363 | M11: 13033.65036 | N11: 3941.797728 | O11: 15624.11929 | P11: 11877.76854 | Q11: 44477.33591 | R11: -0.6713729065 | S11: 2.383744392
B12: Usługa 7 | C12: 11172.65734 | D12: 687.5368513 | E12: 6693.336723 | F12: 5668.125242 | G12: 24221.65616 | H12: 19714.13353 | I12: 15809.20077 | J12: 2420.38271 | K12: 19451.23422 | L12: 57394.95123 | M12: 4725.334486 | N12: 5739.919999 | O12: 4449.394166 | P12: 9093.33318 | Q12: 24007.98183 | R12: 1.369571711 | S12: -0.5817056846
B13: Usługa 8 | C13: 9837.956579 | D13: 10840.63745 | E13: 14844.86183 | F13: 3754.632281 | G13: 39278.08814 | H13: 3191.568735 | I13: 17567.83161 | J13: 16491.79913 | K13: 7749.678453 | L13: 45000.87793 | M13: 19348.03668 | N13: 14893.87385 | O13: 3581.815736 | P13: 2974.933055 | Q13: 40798.65933 | R13: 0.1456992959 | S13: -0.0933808138
B14: Usługa 9 | C14: 10051.98351 | D14: 10198.90959 | E14: 13095.2181 | F14: 7648.146927 | G14: 40994.25812 | H14: 8488.993683 | I14: 12569.32433 | J14: 13792.51553 | K14: 19989.04712 | L14: 54839.88067 | M14: 6621.104944 | N14: 16871.42046 | O14: 11402.36206 | P14: 5322.011159 | Q14: 40216.89862 | R14: 0.3377454107 | S14: -0.2666486847
B15: Usługa 10 | C15: 18355.09307 | D15: 2480.16326 | E15: 6530.17518 | F15: 18685.82398 | G15: 46051.25549 | H15: 3267.435621 | I15: 3198.132875 | J15: 12611.23444 | K15: 12825.93985 | L15: 31902.74278 | M15: 4350.522564 | N15: 12970.01218 | O15: 13788.80634 | P15: 15456.38112 | Q15: 46565.72221 | R15: -0.3072340278 | S15: 0.4596150095
B16: Usługa 11 | C16: 13334.60097 | D16: 5527.173973 | E16: 526.320517 | F16: 11892.22357 | G16: 31280.31903 | H16: 8680.572354 | I16: 5420.782989 | J16: 8107.686736 | K16: 16596.64413 | L16: 38805.68621 | M16: 7517.342937 | N16: 4286.205408 | O16: 7050.774279 | P16: 10326.51885 | Q16: 29180.84148 | R16: 0.2405783386 | S16: -0.2480266598
B17: Usługa 12 | C17: 3144.199642 | D17: 15449.36435 | E17: 1877.63167 | F17: 4641.950843 | G17: 25113.1465 | H17: 16005.23941 | I17: 17860.81266 | J17: 243.8897102 | K17: 10463.71818 | L17: 44573.65996 | M17: 13988.15147 | N17: 18437.30319 | O17: 2067.52087 | P17: 14389.73063 | Q17: 48882.70617 | R17: 0.7749133889 | S17: 0.09667247895
B18: GRUPA B | C18: =SUM(C11:C17) -> 68773.38493 | D18: =SUM(D11:D17) -> 55553.99413 | E18: 59621.51813 | F18: 62987.78714 | G18: 246936.6843 | H18: 64282.54744 | I18: 74237.83834 | J18: 55834.40047 | K18: 91307.42617 | L18: 285662.2124 | M18: 69584.14344 | N18: 77140.53282 | O18: 57964.79274 | P18: 69440.67655 | Q18: 274130.1455 | R18: 0.1568237145 | S18: -0.04036959166
B19: Usługa 13 | C19: 8878.566019 | D19: 16619.17193 | E19: 13892.86398 | F19: 15522.73739 | G19: 54913.33931 | H19: 9464.841977 | I19: 15324.9244 | J19: 13490.65738 | K19: 16149.87138 | L19: 54430.29514 | M19: 9688.465391 | N19: 6648.901905 | O19: 8650.136065 | P19: 5401.595581 | Q19: 30389.09894 | R19: -0.008796481518 | S19: -0.4416877795
B20: Usługa 14 | C20: 1477.243512 | D20: 10617.99456 | E20: 7508.419404 | F20: 6692.759516 | G20: 26296.41699 | H20: 2838.290512 | I20: 13535.91208 | J20: 8995.613029 | K20: 7501.295266 | L20: 32871.11088 | M20: 1483.174018 | N20: 353.7587627 | O20: 9904.83595 | P20: 1376.396183 | Q20: 13118.16491 | R20: 0.2500224229 | S20: -0.6009211566
B21: Usługa 15 | C21: 19847.26612 | D21: 1734.482376 | E21: 17364.8006 | F21: 16668.64345 | G21: 55615.19254 | H21: 18233.06069 | I21: 6682.430099 | J21: 7851.422638 | K21: 17151.68058 | L21: 49918.594 | M21: 10402.20773 | N21: 13689.50008 | O21: 19082.31662 | P21: 1754.836233 | Q21: 44928.86065 | R21: -0.1024288199 | S21: -0.09995740969
B22: GRUPA C | C22: =SUM(C19:C21) -> 30203.07565 | D22: =SUM(D19:D21) -> 28971.64887 | E22: 38766.08398 | F22: 38884.14035 | G22: 136824.9488 | H22: 30536.19317 | I22: 35543.26658 | J22: 30337.69305 | K22: 40802.84723 | L22: 137220 | M22: 21573.84713 | N22: 20692.16074 | O22: 37637.28863 | P22: 8532.827997 | Q22: 88436.12451 | R22: 0.002887274443 | S22: -0.3555157813
B23: Usługa 16 | C23: 11273.38108 | D23: 19106.41925 | E23: 5751.693596 | F23: 19049.87714 | G23: 55181.37105 | H23: 5938.229026 | I23: 19567.53765 | J23: 12055.58914 | K23: 8745.842506 | L23: 46307.19832 | M23: 7495.94243 | N23: 4213.349124 | O23: 8504.067124 | P23: 7901.037563 | Q23: 28114.39624 | R23: -0.1608182719 | S23: -0.39287201
B24: Usługa 17 | C24: 211.8569509 | D24: 15745.56969 | E24: 3676.816545 | F24: 6372.376239 | G24: 26006.61942 | H24: 8749.842932 | I24: 5213.115713 | J24: 11661.48239 | K24: 1671.218005 | L24: 27295.65904 | M24: 8354.6693 | N24: 16674.83462 | O24: 10589.79017 | P24: 4774.745834 | Q24: 40394.03992 | R24: 0.04956582767 | S24: 0.4798704755
B25: Usługa 18 | C25: 13252.50942 | D25: 13855.1027 | E25: 11738.2587 | F25: 7830.442429 | G25: 46676.31324 | H25: 89.7160262 | I25: 15973.24479 | J25: 14666.95199 | K25: 994.3877399 | L25: 31724.30055 | M25: 7553.138236 | N25: 3496.794177 | O25: 12719.81487 | P25: 3370.136226 | Q25: 27139.88351 | R25: -0.3203340549 | S25: -0.1445080573
B26: Usługa 19 | C26: 18765.83031 | D26: 4002.18125 | E26: 7139.210256 | F26: 15975.08227 | G26: 45882.30408 | H26: 4848.023343 | I26: 6691.952685 | J26: 10069.64751 | K26: 4739.218705 | L26: 26348.84224 | M26: 695.42532 | N26: 12099.3072 | O26: 17126.56913 | P26: 11661.86755 | Q26: 41583.16921 | R26: -0.4257297498 | S26: 0.5781782298
B27: Usługa 20 | C27: 5547.04011 | D27: 11719.00804 | E27: 16717.31423 | F27: 16971.40311 | G27: 50954.76549 | H27: 5349.56611 | I27: 6922.328311 | J27: 11817.40248 | K27: 4876.671991 | L27: 28965.9689 | M27: 1171.90358 | N27: 9563.68372 | O27: 9694.585972 | P27: 9344.046979 | Q27: 29774.22025 | R27: -0.4315356254 | S27: 0.02790348075
B28: GRUPA D | C28: =SUM(C23:C27) -> 49050.61786 | D28: =SUM(D23:D27) -> 64428.28092 | E28: 45023.29332 | F28: 66199.18119 | G28: 224701.3733 | H28: 24975.37744 | I28: 54368.17915 | J28: 60271.07352 | K28: 21027.33895 | L28: 160641.9691 | M28: 25271.07887 | N28: 46047.96884 | O28: 58634.82727 | P28: 37051.83416 | Q28: 167005.7091 | R28: -0.285086839 | S28: 0.03961443027
B29: TOTAL | C29: =C28+C22+C18+C10 -> 213223.8232 | D29: =D28+D22+D18+D10 -> 220918.081 | E29: 166566.5969 | F29: 214410.472 | G29: 815118.9732 | H29: 193700.9498 | I29: 210302.207 | J29: 184532.407 | K29: 217708.6297 | L29: 806244.1934 | M29: 178973.3442 | N29: 191841.5733 | O29: 198319.7118 | P29: 145193.6208 | Q29: 714328.2501 | R29: =L29/G29-1 -> -0.01088771095 | S29: =Q29/L29-1 -> -0.1140050919

Sheet VBA 4a
D3: 2
D4: 1
B5: styczeń
B6: luty
B7: marzec
B8: kwiecień
B9: maj
B10: czerwiec
B11: lipiec
B12: sierpień
B13: wrzesień | H13: 1Q
B14: październik | F14: POLSKA | H14: 2Q
B15: listopad | F15: ROSJA | G15: zł/rur/hr | H15: 3Q
B16: grudzień | F16: UKRAINA | G16: USD | H16: 4Q
C19: '000 dolary | F19: '000 waluta lokalna
C20: POLSKA | D20: ROSJA | E20: UKRAINA | F20: POLSKA | G20: ROSJA | H20: UKRAINA
B21: styczeń | C21: 2313.252256 | D21: 6330.605983 | E21: 2838.01863 | F21: 4716.052319 | G21: 163193.4723 | H21: 14223.34428
B22: luty | C22: 2067.267905 | D22: 6697.716174 | E22: 2769.898315 | F22: 4303.249789 | G22: 170489.1944 | H22: 14094.84449
B23: marzec | C23: 2849.423538 | D23: 6317.791601 | E23: 1840.476862 | F23: 5734.301519 | G23: 162505.658 | H23: 9274.779069
B24: kwiecień | C24: 2399.894765 | D24: 5853.665313 | E24: 1702.271469 | F24: 5072.986299 | G24: 149043.8478 | H24: 8653.65023
B25: maj | C25: 2577.813063 | D25: 6100.110911 | E25: 1958.931868 | F25: 5399.776685 | G25: 157937.6743 | H25: 9894.944455
B26: czerwiec | C26: 2913.423465 | D26: 6982.486039 | E26: 1813.534716 | F26: 6113.018517 | G26: 177790.8126 | H26: 9099.876813
B27: lipiec | C27: 2943.174731 | D27: 5055.245953 | E27: 2244.869917 | F27: 6436.717761 | G27: 131282.8346 | H27: 11273.92409
B28: sierpień | C28: 2130.358881 | D28: 5245.92942 | E28: 2771.617399 | F28: 4500.448326 | G28: 135349.6082 | H28: 13907.91317
B29: wrzesień | C29: 2465.897258 | D29: 6828.620511 | E29: 2478.5203 | F29: 5134.287043 | G29: 175378.9576 | H29: 12401.47201
B30: październik | C30: 2788.296182 | D30: 6819.80397 | E30: 2038.082346 | F30: 5867.167199 | G30: 175083.3261 | H30: 10195.38614
B31: listopad | C31: 2068.129714 | D31: 5431.608953 | E31: 2440.639551 | F31: 4544.693572 | G31: 138506.6153 | H31: 12366.80833
B32: grudzień | C32: 3052.006511 | D32: 8461.488144 | E32: 2225.056423 | F32: 6184.192341 | G32: 218546.9832 | H32: 11233.68256

Sheet VBA 5
B3: Produkt | C3: Data Produkcji | D3: Okres ważności | E3: Data ważności
B4: produkt 1 | C4: 2008-09-30 | D4: 1M
B5: produkt 2 | C5: 2008-10-03 | D5: 3M
B6: produkt 3 | C6: 2008-10-06 | D6: 6M
B7: produkt 4 | C7: 2008-10-09 | D7: 1R
B8: produkt 5 | C8: 2008-10-12 | D8: 3L
B9: produkt 6 | C9: 2008-10-15 | D9: 3M
B10: produkt 7 | C10: 2008-10-18 | D10: 3L
B11: produkt 8 | C11: 2008-10-21 | D11: 3L
B12: produkt 9 | C12: 2008-10-24 | D12: 3L
B13: produkt 10 | C13: 2008-10-27 | D13: 1M
B14: produkt 11 | C14: 2008-10-30 | D14: 3M
B15: produkt 12 | C15: 2008-11-02 | D15: 1R
B16: produkt 13 | C16: 2008-11-05 | D16: 3L
B17: produkt 14 | C17: 2008-11-08 | D17: 1M
B18: produkt 15 | C18: 2008-11-11 | D18: 3M
B19: produkt 16 | C19: 2008-11-14 | D19: 3M
B20: produkt 17 | C20: 2008-11-17 | D20: 1M
B21: produkt 18 | C21: 2008-11-20 | D21: 3L
B22: produkt 19 | C22: 2008-11-23 | D22: 1M
B23: produkt 20 | C23: 2008-11-26 | D23: 1M
B24: produkt 21 | C24: 2008-11-29 | D24: 3L
B25: produkt 22 | C25: 2008-12-02 | D25: 1M
B26: produkt 23 | C26: 2008-12-05 | D26: 3M
B27: produkt 24 | C27: 2008-12-08 | D27: 3L
B28: produkt 25 | C28: 2008-12-11 | D28: ?
B29: produkt 26 | C29: 2008-12-14 | D29: 3L
B30: produkt 27 | C30: 2008-12-17 | D30: chyba 3M
B31: produkt 28 | C31: 2008-12-20 | D31: 1M
B32: produkt 29 | C32: 2008-12-23
B33: produkt 30 | C33: 2008-12-26 | D33: 1R

Sheet VBA 6
B3: Targety sprzedażowe dla przedstawicieli handlowych w 2009 Woj. Mazowieckie
C5: Zamówienia 2008 | I5: Wzrost | O5: Zamówienia 2009
C6: Q1 | D6: Q2 | E6: Q3 | F6: Q4 | G6: 2008 | I6: Q1 | J6: Q2 | K6: Q3 | L6: Q4 | M6: 09 v 08 | O6: Q1 | P6: Q2 | Q6: Q3 | R6: Q4 | S6: 2009
B7: Przedstawiciel 1 | C7: 1262.266202 | D7: 1103.155316 | E7: 963.1618631 | F7: 1086.351802 | G7: =SUM(C7:F7) -> 4414.935184 | I7: 0.04661135668 | J7: -0.004728441769 | K7: 0.08194393588 | L7: =R7/F7-1 -> 0.06547511964 | M7: 0.04613295875 | O7: =C7*(1+I7) -> 1321.102143 | P7: =D7*(1+J7) -> 1097.93911 | Q7: =E7*(1+K7) -> 1042.087137 | R7: =S7-O7-P7-Q7 -> 1157.480817 | S7: =G7*(1+M7) -> 4618.609206
B8: Przedstawiciel 2 | C8: 1101.1489 | D8: 1600.713131 | E8: 1764.19849 | F8: 1611.484499 | G8: =SUM(C8:F8) -> 6077.54502 | I8: 0.03013404289 | J8: 0.0746145618 | K8: 0.02103577109 | L8: 0.4358018549 | M8: 0.1467727155 | O8: =C8*(1+I8) -> 1134.330968 | P8: =D8*(1+J8) -> 1720.149639 | Q8: =E8*(1+K8) -> 1801.309766 | R8: =S8-O8-P8-Q8 -> 2313.772433 | S8: 6969.562807
B9: Przedstawiciel 3 | C9: 1554.403353 | D9: 1001.23684 | E9: 1619.713269 | F9: 1587.240863 | G9: 5762.594325 | I9: 0.1076684331 | J9: 0.01205412912 | K9: 0.2169365893 | L9: -0.2761279897 | M9: 0.0160557294 | O9: 1721.763527 | P9: 1013.305878 | Q9: 1971.088341 | R9: 1148.959235 | S9: 5855.11698
B10: Przedstawiciel 4 | C10: 1717.12196 | D10: 810.9382584 | E10: 1211.677854 | F10: 1632.20617 | G10: 5371.944242 | I10: 0.07961323409 | J10: 0.06275074943 | K10: 0.1089989074 | L10: 0.2384552515 | M10: 0.1319582406 | O10: 1853.827592 | P10: 861.8252419 | Q10: 1343.749416 | R10: 2021.414303 | S10: 6080.816553
B11: Przedstawiciel 5 | C11: 1086.014193 | D11: 956.3006246 | E11: 815.7696504 | F11: 968.5520329 | G11: 3826.636501 | I11: 0.05013404289 | J11: 0.03327155823 | K11: 0.07932370885 | L11: 0.07525219038 | M11: 0.05850031227 | O11: 1140.460476 | P11: 988.1182365 | Q11: 880.4795246 | R11: 1041.437695 | S11: 4050.495932
B12: Przedstawiciel 6 | C12: 1505.869424 | D12: 902.2337735 | E12: 1416.55978 | F12: 1104.162556 | G12: 4928.825533 | I12: 0.02230453793 | J12: 0.005442053265 | K12: 0.1048883677 | L12: 0.5087695435 | M12: 0.1519312549 | O12: 1539.457145 | P12: 907.1437778 | Q12: 1565.140423 | R12: 1665.926835 | S12: 5677.668181
B13: Przedstawiciel 7 | C13: 1453.400339 | D13: 1038.115836 | E13: 978.1684265 | F13: 1678.229507 | G13: 5147.914109 | I13: 0.1054556628 | J13: 0.003271558231 | K13: 0.02032929472 | L13: 0.2930281829 | M13: 0.1298233723 | O13: 1606.669635 | P13: 1041.512092 | Q13: 998.0539007 | R13: 2169.99805 | S13: 5816.233678
B14: ZESPÓŁ A | C14: =SUM(C7:C13) -> 9680.224372 | D14: =SUM(D7:D13) -> 7412.693778 | E14: =SUM(E7:E13) -> 8769.249333 | F14: =SUM(F7:F13) -> 9668.227431 | G14: 35530.39491 | I14: =O14/C14-1 -> 0.06584425007 | J14: =P14/D14-1 -> 0.02931460598 | K14: =Q14/E14-1 -> 0.09495216112 | L14: 0.1914272238 | M14: =S14/G14-1 -> 0.09957976635 | O14: =SUM(O7:O13) -> 10317.61149 | P14: =SUM(P7:P13) -> 7629.993976 | Q14: =SUM(Q7:Q13) -> 9601.908508 | R14: =SUM(R7:R13) -> 11518.98937 | S14: =SUM(S7:S13) -> 39068.50334
B15: Przedstawiciel 8 | C15: 1196.857386 | D15: 898.0529508 | E15: 915.6538506 | F15: 1664.305067 | G15: 4674.869254 | I15: 0.04013404289 | J15: 0.147273569 | K15: 0.03555246091 | L15: -0.1211776869 | M15: 0.002389649344 | O15: =C15*(1+I15) -> 1244.892111 | P15: 1030.312414 | Q15: 948.2075983 | R15: 1462.628429 | S15: =G15*(1+M15) -> 4686.040552
B16: Przedstawiciel 9 | C16: 1317.541021 | D16: 1143.411276 | E16: 1785.120656 | F16: 1572.054147 | G16: 5818.127099 | I16: 0.03052919645 | J16: 0.0755154687 | K16: 0.1466488542 | L16: 0.05290445451 | M16: 0.08104382475 | O16: 1357.764489 | P16: 1229.756514 | Q16: 2046.906555 | R16: 1655.222814 | S16: =G16*(1+M16) -> 6289.650372
B17: Przedstawiciel 10 | C17: 1619.263354 | D17: 889.3779787 | E17: 1345.063289 | F17: 1343.814953 | G17: 5197.519575 | I17: 0.02013404289 | J17: 0.07263533661 | K17: 0.1614644076 | L17: 0.01677225895 | M17: 0.06482346846 | O17: 1651.865672 | P17: 953.9782476 | Q17: 1562.243136 | R17: 1366.353766 | S17: =G17*(1+M17) -> 5534.440821
B18: Przedstawiciel 11 | C18: 1258.968758 | D18: 801.1362016 | E18: 1094.436389 | F18: 889.1986673 | G18: 4043.740016 | I18: 0.04403839228 | J18: 0.1608164608 | K18: 0.1199372602 | L18: -0.2224544795 | M18: 0.02911570065 | O18: 1314.411718 | P18: 929.9720901 | Q18: 1225.700091 | R18: 691.3924406 | S18: =G18*(1+M18) -> 4161.47634
B19: ZESPÓŁ B | C19: =SUM(C15:C18) -> 5392.630519 | D19: =SUM(D15:D18) -> 3731.978407 | E19: =SUM(E15:E18) -> 5140.274185 | F19: =SUM(F15:F18) -> 5469.372834 | G19: 19734.25594 | I19: =O19/C19-1 -> 0.03269340845 | J19: =P19/D19-1 -> 0.1104081573 | K19: =Q19/E19-1 -> 0.1250484259 | L19: -0.05371281032 | M19: =S19/G19-1 -> 0.04749873235 | O19: =SUM(O15:O18) -> 5568.933991 | P19: =SUM(P15:P18) -> 4144.019266 | Q19: =SUM(Q15:Q18) -> 5783.05738 | R19: =SUM(R15:R18) -> 5175.597449 | S19: =SUM(S15:S18) -> 20671.60809
B20: Przedstawiciel 12 | C20: 1349.944253 | D20: 1592.672979 | E20: 1543.327286 | F20: 1285.213077 | G20: 5771.157595 | I20: 0.07961323409 | J20: 0.06277399022 | K20: 0.008842506152 | L20: -0.1964169941 | M20: -0.005430269746 | O20: =C20*(1+I20) -> 1457.417681 | P20: 1692.651417 | Q20: 1556.974167 | R20: 1032.775388 | S20: =G20*(1+M20) -> 5739.818653
B21: Przedstawiciel 13 | C21: 1079.915051 | D21: 938.2008486 | E21: 1022.040173 | F21: 821.8741776 | G21: 3862.03025 | I21: 0.07961323409 | J21: 0.06275074943 | K21: 0.07832169735 | L21: 0.1319087403 | M21: 0.08630399637 | O21: 1165.890581 | P21: 997.0736549 | Q21: 1102.088094 | R21: 930.286565 | S21: =G21*(1+M21) -> 4195.338894
B22: Przedstawiciel 14 | C22: 1102.844363 | D22: 874.2607867 | E22: 1626.614274 | F22: 1672.050238 | G22: 5275.769661 | I22: 0.05013404289 | J22: 0.03327155823 | K22: 0.04884250615 | L22: 0.1708013737 | M22: 0.08518462504 | O22: 1158.134409 | P22: 903.3488054 | Q22: 1706.062191 | R22: 1957.638715 | S22: =G22*(1+M22) -> 5725.184121
B23: Przedstawiciel 15 | C23: 950.6493108 | D23: 1497.937619 | E23: 1578.142178 | F23: 1576.19135 | G23: 5602.920458 | I23: 0.02230453793 | J23: 0.005442053265 | K23: 0.02101300119 | L23: -0.1717186302 | M23: -0.03714924524 | O23: 971.8531044 | P23: 1506.089476 | Q23: 1611.303682 | R23: 1305.52993 | S23: =G23*(1+M23) -> 5394.776192
B24: ZESPÓŁ C | C24: =SUM(C20:C23) -> 4483.352978 | D24: =SUM(D20:D23) -> 4903.072234 | E24: =SUM(E20:E23) -> 5770.12391 | F24: =SUM(F20:F23) -> 5355.328842 | G24: 20511.87796 | I24: =O24/C24-1 -> 0.06021002565 | J24: =P24/D24-1 -> 0.0399935204 | K24: =Q24/E24-1 -> 0.0357538636 | L24: -0.02410650174 | M24: =S24/G24-1 -> 0.02648416187 | O24: =SUM(O20:O23) -> 4753.295775 | P24: =SUM(P20:P23) -> 5099.163353 | Q24: =SUM(Q20:Q23) -> 5976.428133 | R24: =SUM(R20:R23) -> 5226.230598 | S24: =SUM(S20:S23) -> 21055.11786
B25: Przedstawiciel 16 | C25: 1028.298111 | D25: 1212.771454 | E25: 1588.962405 | F25: 1950 | G25: 5780.03197 | I25: 0.011 | J25: 0.01751738876 | K25: 0 | L25: 0.2647687116 | M25: 0.0949570623 | O25: =C25*(1+I25) -> 1039.60939 | P25: 1234.016043 | Q25: 1588.962405 | R25: 2466.298988 | S25: =G25*(1+M25) -> 6328.886826
B26: Przedstawiciel 17 | C26: 1736.993384 | D26: 1082.81576 | E26: 1058.760324 | F26: 1219.946307 | G26: 5098.515775 | I26: 0.0694791912 | J26: 0.01 | K26: 0.0694791912 | L26: 0.1337223384 | M26: 0.07221884822 | O26: 1857.678279 | P26: 1093.643917 | Q26: 1132.322135 | R26: 1383.08038 | S26: =G26*(1+M26) -> 5466.724712
B27: Przedstawiciel 18 | C27: 890.9358352 | D27: 1184.801293 | E27: 1296.772146 | F27: 1410.63274 | G27: 4783.142015 | I27: 0.04 | J27: 0.02865591841 | K27: 0.04 | L27: 0.2407154102 | M27: 0.09638453671 | O27: 926.5732686 | P27: 1218.752862 | Q27: 1348.643032 | R27: 1750.193779 | S27: =G27*(1+M27) -> 5244.162942
B28: Przedstawiciel 19 | C28: 1232.282868 | D28: 1399.532739 | E28: 1686.855827 | F28: 1134.18445 | G28: 5452.855884 | I28: 0.01217049503 | J28: 0.0641576522 | K28: 0.01217049503 | L28: 0.3302590107 | M28: 0.09167539776 | O28: 1247.28036 | P28: 1489.323474 | Q28: 1707.385698 | R28: 1508.759084 | S28: =G28*(1+M28) -> 5952.748616
B29: Przedstawiciel 20 | C29: 930.5689181 | D29: 1256.86793 | E29: 1206.54894 | F29: 1079.657413 | G29: 4473.643202 | I29: 0.002095781034 | J29: 0.1023301089 | K29: 0.1328864913 | L29: -0.07376754479 | M29: 0.04722238006 | O29: 932.5191868 | P29: 1385.483362 | Q29: 1366.882996 | R29: 1000.013736 | S29: =G29*(1+M29) -> 4684.899281
B30: ZESPÓŁ D | C30: =SUM(C25:C29) -> 5819.079116 | D30: =SUM(D25:D29) -> 6136.789176 | E30: =SUM(E25:E29) -> 6837.899643 | F30: =SUM(F25:F29) -> 6794.42091 | G30: 25588.18884 | I30: =O30/C30-1 -> 0.03172003088 | J30: 0.04634842008 | K30: 0.04479396285 | L30: 0.193382935 | M30: =S30/G30-1 -> 0.08164835519 | O30: =SUM(O25:O29) -> 6003.660485 | P30: =SUM(P25:P29) -> 6421.219658 | Q30: =SUM(Q25:Q29) -> 7144.196266 | R30: =SUM(R25:R29) -> 8108.345967 | S30: =SUM(S25:S29) -> 27677.42238
B31: Województwo Mazowieckie | C31: =C30+C24+C19+C14 -> 25375.28698 | D31: =D30+D24+D19+D14 -> 22184.53359 | E31: =E30+E24+E19+E14 -> 26517.54707 | F31: =F30+F24+F19+F14 -> 27287.35002 | G31: 101364.7177 | I31: 0.0499783413 | J31: 0.05002866766 | K31: 0.07497085653 | L31: 0.100479283 | M31: =S31/G31-1 -> 0.07012236759 | O31: =O30+O24+O19+O14 -> 26643.50174 | P31: =P30+P24+P19+P14 -> 23294.39625 | Q31: =Q30+Q24+Q19+Q14 -> 28505.59029 | R31: =R30+R24+R19+R14 -> 30029.16338 | S31: =SUM(O31:R31) -> 108472.6517
B33: TARGET | I33: 0.05 | J33: 0.05 | K33: 0.075 | L33: 0.1 | M33: 0.07000011665
B34: Różnica | I34: =I31-I33 -> -2.165869678e-05 | J34: =J31-J33 -> 2.866766248e-05 | K34: =K31-K33 -> -2.914347059e-05 | L34: =L31-L33 -> 0.0004792829661 | M34: =M31-M33 -> 0.0001222509376

Sheet VBA 6a
B3: Targety sprzedażowe dla przedstawicieli handlowych w 2009 Woj. Wielkopolskie
C5: Zamówienia 2008 | I5: Wzrost | O5: Zamówienia 2009
C6: Q1 | D6: Q2 | E6: Q3 | F6: Q4 | G6: 2008 | I6: Q1 | J6: Q2 | K6: Q3 | L6: Q4 | M6: 09 v 08 | O6: Q1 | P6: Q2 | Q6: Q3 | R6: Q4 | S6: 2009
B7: Przedstawiciel 1 | C7: 1262.266202 | D7: 1103.155316 | E7: 963.1618631 | F7: 1086.351802 | G7: =SUM(C7:F7) -> 4414.935184 | I7: 0.06337573246 | J7: 0.08019372253 | K7: 0.03204562618 | L7: =R7/F7-1 -> 0.1669974537 | M7: 0.08624051554 | O7: =C7*(1+I7) -> 1342.263248 | P7: 1191.621447 | Q7: 994.0269881 | R7: =S7-O7-P7-Q7 -> 1267.769787 | S7: =G7*(1+M7) -> 4795.68147
B8: Przedstawiciel 2 | C8: 1101.1489 | D8: 1600.713131 | E8: 1764.19849 | F8: 1611.484499 | G8: 6077.54502 | I8: 0.02607927768 | J8: 0.08017870491 | K8: 0.08255160408 | L8: -0.06698106821 | M8: 0.03204562618 | O8: 1129.866068 | P8: 1729.056236 | Q8: 1909.835906 | R8: 1503.545546 | S8: 6272.303756
B9: Przedstawiciel 3 | C9: 1554.403353 | D9: 1001.23684 | E9: 1619.713269 | F9: 1587.240863 | G9: 5762.594325 | I9: 0.0719784663 | J9: 0.0990743134 | K9: 0.06482728302 | L9: 0.1005703523 | M9: 0.08255160408 | O9: 1666.286923 | P9: 1100.433692 | Q9: 1724.714879 | R9: 1746.870236 | S9: 6238.30573
B10: Przedstawiciel 4 | C10: 1717.12196 | D10: 810.9382584 | E10: 1211.677854 | F10: 1632.20617 | G10: 5371.944242 | I10: 0.03514030414 | J10: 0.05954711197 | K10: 0.001129032606 | L10: 0.0380773429 | M10: 0.03204562618 | O10: 1777.462148 | P10: 859.2272897 | Q10: 1213.045877 | R10: 1694.356244 | S10: 5544.091559
B11: Przedstawiciel 5 | C11: 1086.014193 | D11: 956.3006246 | E11: 815.7696504 | F11: 968.5520329 | G11: 3826.636501 | I11: 0.003288359016 | J11: 0.05403298388 | K11: 0.01739232817 | L11: 0.2544663155 | M11: 0.08255160408 | O11: 1089.585398 | P11: 1007.972401 | Q11: 829.9577839 | R11: 1215.0159 | S11: 4142.531483
B12: Przedstawiciel 6 | C12: 1505.869424 | D12: 902.2337735 | E12: 1416.55978 | F12: 1104.162556 | G12: 4928.825533 | I12: 0.06284533899 | J12: 0.09489546839 | K12: 0.06948407449 | L12: 0.03698662971 | M12: 0.06482728302 | O12: 1600.506298 | P12: 987.85167 | Q12: 1514.988125 | R12: 1145.001807 | S12: 5248.347901
B13: Przedstawiciel 7 | C13: 1453.400339 | D13: 1038.115836 | E13: 978.1684265 | F13: 1678.229507 | G13: 5147.914109 | I13: 0.09301878758 | J13: 0.06307266408 | K13: 0.05614945437 | L13: -0.1488364543 | M13: 0.001129032606 | O13: 1588.593877 | P13: 1103.592567 | Q13: 1033.09205 | R13: 1428.447778 | S13: 5153.726271
B14: ZESPÓŁ A | C14: =SUM(C7:C13) -> 9680.224372 | D14: =SUM(D7:D13) -> 7412.693778 | E14: =SUM(E7:E13) -> 8769.249333 | F14: =SUM(F7:F13) -> 9668.227431 | G14: 35530.39491 | I14: =O14/C14-1 -> 0.05313302326 | J14: =P14/D14-1 -> 0.07649871179 | K14: =Q14/E14-1 -> 0.05136269476 | L14: 0.03441994619 | M14: =S14/G14-1 -> 0.05247882161 | O14: =SUM(O7:O13) -> 10194.56396 | P14: =SUM(P7:P13) -> 7979.755303 | Q14: =SUM(Q7:Q13) -> 9219.661609 | R14: =SUM(R7:R13) -> 10001.0073 | S14: =SUM(S7:S13) -> 37394.98817
B15: Przedstawiciel 8 | C15: 1196.857386 | D15: 898.0529508 | E15: 915.6538506 | F15: 1664.305067 | G15: 4674.869254 | I15: 0.03514030414 | J15: 0.05954711197 | K15: 0.001129032606 | L15: 0.03198987877 | M15: 0.03204562618 | O15: =C15*(1+I15) -> 1238.915318 | P15: 951.5294104 | Q15: 916.6876537 | R15: 1717.545984 | S15: =G15*(1+M15) -> 4824.678367
B16: Przedstawiciel 9 | C16: 1317.541021 | D16: 1143.411276 | E16: 1785.120656 | F16: 1572.054147 | G16: 5818.127099 | I16: 0.003288359016 | J16: 0.05403298388 | K16: 0.01739232817 | L16: 0.2437154282 | M16: 0.08255160408 | O16: 1321.873569 | P16: 1205.193199 | Q16: 1816.16806 | R16: 1955.187996 | S16: =G16*(1+M16) -> 6298.422824
B17: Przedstawiciel 10 | C17: 1619.263354 | D17: 889.3779787 | E17: 1345.063289 | F17: 1343.814953 | G17: 5197.519575 | I17: 0.06284533899 | J17: 0.09489546839 | K17: 0.06948407449 | L17: 0.04265431066 | M17: 0.06482728302 | O17: 1721.026509 | P17: 973.7759186 | Q17: 1438.523767 | R17: 1401.134454 | S17: =G17*(1+M17) -> 5534.460648
B18: Przedstawiciel 11 | C18: 1258.968758 | D18: 801.1362016 | E18: 1094.436389 | F18: 889.1986673 | G18: 4043.740016 | I18: 0.09301878758 | J18: 0.06307266408 | K18: 0.05614945437 | L18: -0.252501541 | M18: 0.001129032606 | O18: 1376.076506 | P18: 851.6659961 | Q18: 1155.888395 | R18: 664.6746336 | S18: =G18*(1+M18) -> 4048.305531
B19: ZESPÓŁ B | C19: =SUM(C15:C18) -> 5392.630519 | D19: =SUM(D15:D18) -> 3731.978407 | E19: =SUM(E15:E18) -> 5140.274185 | F19: =SUM(F15:F18) -> 5469.372834 | G19: 19734.25594 | I19: =O19/C19-1 -> 0.04918960819 | J19: =P19/D19-1 -> 0.06703846854 | K19: =Q19/E19-1 -> 0.03637815503 | L19: 0.04921409488 | M19: =S19/G19-1 -> 0.04923476349 | O19: =SUM(O15:O18) -> 5657.891901 | P19: =SUM(P15:P18) -> 3982.164524 | Q19: =SUM(Q15:Q18) -> 5327.267876 | R19: =SUM(R15:R18) -> 5738.543068 | S19: =SUM(S15:S18) -> 20705.86737
B20: Przedstawiciel 12 | C20: 1349.944253 | D20: 1592.672979 | E20: 1543.327286 | F20: 1285.213077 | G20: 5771.157595 | I20: 0.03514030414 | J20: 0.05954711197 | K20: 0.001129032606 | L20: 0.03184013994 | M20: 0.03204562618 | O20: =C20*(1+I20) -> 1397.381705 | P20: 1687.512055 | Q20: 1545.069753 | R20: 1326.134441 | S20: =G20*(1+M20) -> 5956.097954
B21: Przedstawiciel 13 | C21: 1079.915051 | D21: 938.2008486 | E21: 1022.040173 | F21: 821.8741776 | G21: 3862.03025 | I21: 0.003288359016 | J21: 0.05403298388 | K21: 0.01739232817 | L21: 0.3002846433 | M21: 0.08255160408 | O21: 1083.466199 | P21: 988.8946399 | Q21: 1039.815831 | R21: 1068.670372 | S21: =G21*(1+M21) -> 4180.847042
B22: Przedstawiciel 14 | C22: 1102.844363 | D22: 874.2607867 | E22: 1626.614274 | F22: 1672.050238 | G22: 5275.769661 | I22: 0.06284533899 | J22: 0.09489546839 | K22: 0.06948407449 | L22: 0.04588259922 | M22: 0.06482728302 | O22: 1172.152991 | P22: 957.2241735 | Q22: 1739.638061 | R22: 1748.768249 | S22: =G22*(1+M22) -> 5617.783474
B23: Przedstawiciel 15 | C23: 950.6493108 | D23: 1497.937619 | E23: 1578.142178 | F23: 1576.19135 | G23: 5602.920458 | I23: 0.09301878758 | J23: 0.06307266408 | K23: 0.05614945437 | L23: -0.1682493086 | M23: 0.001129032606 | O23: 1039.077557 | P23: 1592.416535 | Q23: 1666.754 | R23: 1310.998245 | S23: =G23*(1+M23) -> 5609.246338
B24: ZESPÓŁ C | C24: =SUM(C20:C23) -> 4483.352978 | D24: =SUM(D20:D23) -> 4903.072234 | E24: =SUM(E20:E23) -> 5770.12391 | F24: =SUM(F20:F23) -> 5355.328842 | G24: 20511.87796 | I24: =O24/C24-1 -> 0.04655566385 | J24: =P24/D24-1 -> 0.06587199928 | K24: =Q24/E24-1 -> 0.03832738048 | L24: 0.01853153513 | M24: =S24/G24-1 -> 0.04154162995 | O24: =SUM(O20:O23) -> 4692.078452 | P24: =SUM(P20:P23) -> 5226.047404 | Q24: =SUM(Q20:Q23) -> 5991.277644 | R24: =SUM(R20:R23) -> 5454.571307 | S24: =SUM(S20:S23) -> 21363.97481
B25: Przedstawiciel 16 | C25: 1028.298111 | D25: 1212.771454 | E25: 1588.962405 | F25: 1950 | G25: 5780.03197 | I25: 0.03514030414 | J25: 0.05954711197 | K25: 0.001129032606 | L25: 0.03850205512 | M25: 0.03204562618 | O25: =C25*(1+I25) -> 1064.432819 | P25: 1284.988492 | Q25: 1590.756395 | R25: 2025.079007 | S25: =G25*(1+M25) -> 5965.256714
B26: Przedstawiciel 17 | C26: 1736.993384 | D26: 1082.81576 | E26: 1058.760324 | F26: 1219.946307 | G26: 5098.515775 | I26: 0.003288359016 | J26: 0.05403298388 | K26: 0.01739232817 | L26: 0.2772718129 | M26: 0.08255160408 | O26: 1742.705242 | P26: 1141.323526 | Q26: 1077.174631 | R26: 1558.203032 | S26: =G26*(1+M26) -> 5519.406431
B27: Przedstawiciel 18 | C27: 890.9358352 | D27: 1184.801293 | E27: 1296.772146 | F27: 1410.63274 | G27: 4783.142015 | I27: 0.06284533899 | J27: 0.09489546839 | K27: 0.06948407449 | L27: 0.03654363678 | M27: 0.06482728302 | O27: 946.9269998 | P27: 1297.233567 | Q27: 1386.877159 | R27: 1462.18239 | S27: =G27*(1+M27) -> 5093.220116
B28: Przedstawiciel 19 | C28: 1232.282868 | D28: 1399.532739 | E28: 1686.855827 | F28: 1134.18445 | G28: 5452.855884 | I28: 0.09301878758 | J28: 0.06307266408 | K28: 0.05614945437 | L28: -0.2569752202 | M28: 0.001129032606 | O28: 1346.908326 | P28: 1487.804997 | Q28: 1781.571862 | R28: 842.7271512 | S28: =G28*(1+M28) -> 5459.012336
B29: Przedstawiciel 20 | C29: 930.5689181 | D29: 1256.86793 | E29: 1206.54894 | F29: 1079.657413 | G29: 4473.643202 | I29: 0.09301878758 | J29: 0.06307266408 | K29: 0.05614945437 | L29: -0.02067821344 | M29: 0.04722238006 | O29: 1017.129311 | P29: 1336.141939 | Q29: 1274.296005 | R29: 1057.332027 | S29: =G29*(1+M29) -> 4684.899281
B30: ZESPÓŁ D | C30: =SUM(C25:C29) -> 5819.079116 | D30: =SUM(D25:D29) -> 6136.789176 | E30: =SUM(E25:E29) -> 6837.899643 | F30: =SUM(F25:F29) -> 6794.42091 | G30: 25588.18884 | I30: =O30/C30-1 -> 0.05138675307 | J30: 0.06692479291 | K30: 0.0398918415 | L30: 0.02223923113 | M30: =S30/G30-1 -> 0.04430192535 | O30: =SUM(O25:O29) -> 6118.102697 | P30: =SUM(P25:P29) -> 6547.492521 | Q30: =SUM(Q25:Q29) -> 7110.676052 | R30: =SUM(R25:R29) -> 6945.523607 | S30: =SUM(S25:S29) -> 26721.79488
B31: Województwo Wielkopolskie | C31: =C30+C24+C19+C14 -> 25375.28698 | D31: =D30+D24+D19+D14 -> 22184.53359 | E31: =E30+E24+E19+E14 -> 26517.54707 | F31: =F30+F24+F19+F14 -> 27287.35002 | G31: 101364.7177 | I31: 0.05073243214 | J31: 0.06991024403 | K31: 0.04266367882 | L31: 0.03123407962 | M31: =S31/G31-1 -> 0.047569881 | O31: =O30+O24+O19+O14 -> 26662.63701 | P31: =P30+P24+P19+P14 -> 23735.45975 | Q31: =Q30+Q24+Q19+Q14 -> 27648.88318 | R31: =R30+R24+R19+R14 -> 28139.64528 | S31: =SUM(O31:R31) -> 106186.6252
B33: TARGET | I33: 0.05 | J33: 0.05 | K33: 0.075 | L33: 0.1 | M33: 0.07000011665
B34: Różnica | I34: =I31-I33 -> 0.0007324321366 | J34: =J31-J33 -> 0.01991024403 | K34: =K31-K33 -> -0.03233632118 | L34: =L31-L33 -> -0.06876592038 | M34: =M31-M33 -> -0.02243023566
